bitfinex/quotes_BTCUSD_20250525
["timestamp","ask_amount","ask_price","bid_price","bid_amount"]
[1748210021641,0.23373856,107570.0,107560.0,1.52268309]
[1748210021943,0.22444307,107570.0,107560.0,1.53197979]
[1748210022502,0.22444307,107570.0,107560.0,1.5412764]
[1748210023747,0.22444307,107570.0,107560.0,1.52268309]
[1748210025056,0.22444307,107570.0,107560.0,1.53197979]
[1748210026725,0.22444307,107570.0,107560.0,1.5412764]
[1748210027270,0.22444307,107570.0,107560.0,1.3647863]
[1748210027469,0.22444307,107570.0,107560.0,1.53193979]
[1748210027674,0.22444307,107570.0,107560.0,1.5412364]
[1748210027877,0.22444307,107570.0,107560.0,1.53193979]
[1748210028710,0.22444307,107570.0,107560.0,1.52264309]
[1748210029613,0.22444307,107570.0,107560.0,1.53193979]
[1748210030220,0.22444307,107570.0,107560.0,1.52264309]
[1748210030461,0.22444307,107570.0,107560.0,1.53193979]
[1748210030646,0.22446178,107570.0,107560.0,1.53193979]
[1748210032439,0.22887419,107570.0,107560.0,1.50404925]
[1748210032679,0.22887419,107570.0,107560.0,1.31810653]
[1748210032996,0.22887419,107570.0,107560.0,1.29023253]
[1748210035838,0.22887419,107570.0,107560.0,1.47617525]
[1748210036423,0.21277419,107570.0,107560.0,1.29023253]
[1748210036626,0.21277419,107570.0,107560.0,1.47617525]
[1748210036840,0.22877419,107570.0,107560.0,1.12760108]
[1748210037825,0.22877419,107570.0,107560.0,0.78760108]
[1748210039671,0.22877419,107570.0,107560.0,1.12760108]
[1748210044514,0.22877419,107570.0,107560.0,0.35013733]
[1748210044777,0.22877419,107570.0,107560.0,1.12760108]
[1748210049933,0.22877419,107570.0,107560.0,1.11846375]
[1748210050688,0.21277419,107570.0,107560.0,1.11846375]
[1748210050899,0.22787419,107570.0,107560.0,1.11846375]
[1748210051289,0.21297419,107570.0,107560.0,1.11846375]
[1748210051499,0.19657419,107570.0,107560.0,1.11846375]
[1748210051904,0.22788534,107570.0,107560.0,1.11846375]
[1748210052970,0.22788534,107570.0,107560.0,1.09669444]
[1748210064816,0.22506434,107570.0,107560.0,1.09669444]
[1748210065572,0.23393704,107570.0,107560.0,1.09669444]
[1748210073715,0.26623704,107570.0,107560.0,1.09669444]
[1748210074067,0.24983704,107570.0,107560.0,1.09669444]
[1748210074478,0.23393704,107570.0,107560.0,1.09669444]
[1748210076694,0.23393704,107570.0,107560.0,1.07492502]
[1748210080901,0.23393704,107570.0,107560.0,0.86492484]
[1748210082014,0.23393704,107570.0,107560.0,0.77746375]
[1748210082793,0.23393704,107570.0,107560.0,1.11746375]
[1748210083923,0.35332345,107570.0,107560.0,1.11746375]
[1748210084127,0.35332345,107570.0,107550.0,0.00914292]
[1748210084128,0.19523968,107560.0,107550.0,0.00914292]
[1748210084574,0.19525783,107550.0,107540.0,0.5213]
[1748210085120,0.19325783,107550.0,107540.0,0.5213]
[1748210085332,0.19325783,107550.0,107540.0,1.29876375]
[1748210085532,0.20190658,107550.0,107540.0,1.29876375]
[1748210085953,0.20190658,107550.0,107540.0,1.30176375]
[1748210086285,0.19990658,107550.0,107540.0,1.30176375]
[1748210086915,0.19990658,107550.0,107540.0,1.31404717]
[1748210089279,0.19990658,107550.0,107540.0,1.16544717]
[1748210089518,0.19990658,107550.0,107540.0,1.28334717]
[1748210090451,0.19990658,107550.0,107540.0,1.29834717]
[1748210094128,0.19990658,107550.0,107540.0,0.37228342]
[1748210094330,0.23126952,107550.0,107540.0,1.28334717]
[1748210098504,0.23126952,107550.0,107540.0,1.31514717]
[1748210099316,0.23126952,107550.0,107540.0,0.52178342]
[1748210099524,0.23126952,107550.0,107540.0,1.28334717]
[1748210100826,0.23126952,107550.0,107540.0,1.13474717]
[1748210101020,0.23126952,107550.0,107540.0,0.01728342]
[1748210101228,0.23126952,107550.0,107540.0,1.13474717]
[1748210103679,0.23126952,107550.0,107540.0,1.15124717]
[1748210103873,0.23126952,107550.0,107540.0,1.16744717]
[1748210105505,0.23126952,107550.0,107540.0,1.13474717]
[1748210106026,0.23126952,107550.0,107540.0,1.15124717]
[1748210106223,0.23126952,107550.0,107540.0,1.16744717]
[1748210107363,0.23126952,107550.0,107540.0,1.13474717]
[1748210107583,0.23126952,107550.0,107540.0,1.16544717]
[1748210118800,0.23126952,107550.0,107540.0,0.38798342]
[1748210119010,0.23126952,107550.0,107540.0,1.16544717]
[1748210124020,0.24056726,107550.0,107540.0,1.16544717]
[1748210124235,0.23126952,107550.0,107540.0,1.16544717]
[1748210124995,0.23126952,107550.0,107540.0,1.13474717]
[1748210125749,0.23126952,107550.0,107540.0,1.16714717]
[1748210140215,0.23126952,107550.0,107540.0,1.15786375]
[1748210146356,0.26229277,107560.0,107540.0,1.15786375]
[1748210146566,0.55233768,107560.0,107550.0,0.77746375]
[1748210148524,0.55233768,107560.0,107550.0,0.77846375]
[1748210149047,0.55233768,107560.0,107550.0,0.53479096]
[1748210149725,0.55233768,107560.0,107550.0,0.53579096]
[1748210151460,0.05233768,107560.0,107550.0,0.53579096]
[1748210157090,0.05233768,107560.0,107550.0,0.55169096]
[1748210158258,0.05233768,107560.0,107550.0,0.56719096]
[1748210158626,0.06101363,107560.0,107550.0,0.56719096]
[1748210163341,0.06101363,107560.0,107550.0,0.81086375]
[1748210164258,0.09239112,107560.0,107550.0,0.81086375]
[1748210164449,0.09358112,107560.0,107550.0,0.81086375]
[1748210169484,0.10246543,107560.0,107550.0,0.81086375]
[1748210178826,0.10246543,107560.0,107550.0,0.0334]
[1748210179059,0.10246543,107560.0,107550.0,0.95946375]
[1748210181504,0.10246543,107560.0,107550.0,0.81086375]
[1748210185478,0.10246543,107560.0,107550.0,1.15086375]
[1748210188000,0.10246543,107560.0,107550.0,0.3734]
[1748210188234,0.10246543,107560.0,107550.0,1.15086375]
[1748210188434,0.09358112,107560.0,107550.0,1.15086375]
[1748210197297,0.09358112,107560.0,107550.0,1.20086375]
[1748210201117,0.09358112,107560.0,107550.0,0.99876688]
[1748210202243,0.09358112,107560.0,107550.0,0.82746375]
[1748210204158,0.09358112,107560.0,107550.0,0.85866375]
[1748210204366,0.1263784,107560.0,107550.0,1.19866375]
[1748210214920,0.09358112,107560.0,107550.0,1.19866375]
[1748210222964,0.10279983,107560.0,107550.0,1.19866375]
[1748210225536,0.10279983,107560.0,107550.0,0.4212]
[1748210225771,0.10279983,107560.0,107550.0,1.19866375]
[1748210227513,0.09358112,107560.0,107550.0,1.19866375]
[1748210232630,0.09358112,107560.0,107550.0,0.4212]
[1748210236665,0.09358112,107560.0,107550.0,1.19866375]
[1748210251225,0.09358112,107560.0,107550.0,0.39]
[1748210252777,0.10988112,107560.0,107550.0,0.39]
[1748210252985,0.09358112,107560.0,107550.0,0.39]
[1748210255190,0.09358112,107560.0,107550.0,0.4066]
[1748210257063,0.09358112,107560.0,107550.0,0.39]
[1748210257820,0.09358112,107560.0,107550.0,0.4209]
[1748210258166,0.09358112,107560.0,107550.0,0.4058]
[1748210258388,0.09358112,107560.0,107550.0,0.4216]
[1748210258767,0.09358112,107560.0,107550.0,0.39]
[1748210260685,0.09358112,107560.0,107550.0,0.4062]
[1748210262716,0.09358112,107560.0,107550.0,0.4221]
[1748210264670,0.09358112,107560.0,107550.0,0.4062]
[1748210265850,0.09358112,107560.0,107550.0,0.39]
[1748210271223,0.09358112,107560.0,107550.0,0.05]
[1748210273614,0.10246325,107560.0,107550.0,0.05]
[1748210276761,0.10246325,107560.0,107550.0,0.82746375]
[1748210278126,0.22340881,107560.0,107550.0,0.05]
[1748210278349,0.22340881,107560.0,107550.0,0.82746375]
[1748210278758,0.20780881,107560.0,107550.0,0.05]
[1748210280042,0.20780881,107560.0,107550.0,0.82746375]
[1748210281057,0.19200881,107560.0,107550.0,0.82746375]
[1748210281263,0.19200881,107560.0,107550.0,0.05]
[1748210282989,0.19200881,107560.0,107550.0,0.82746375]
[1748210283280,0.22300881,107560.0,107550.0,0.05]
[1748210283487,0.22300881,107560.0,107550.0,0.82746375]
[1748210283780,0.19200881,107560.0,107550.0,0.82746375]
[1748210283991,0.19200881,107560.0,107550.0,0.05]
[1748210284542,0.20979868,107550.0,107540.0,1.34996375]
[1748210284737,0.21847463,107550.0,107540.0,1.34996375]
[1748210286431,0.21847463,107550.0,107540.0,1.35196375]
[1748210286870,0.28261721,107550.0,107540.0,1.35396375]
[1748210288678,0.29211709,107550.0,107540.0,1.35396375]
[1748210289457,0.29211709,107550.0,107540.0,0.4279]
[1748210289663,0.29211709,107550.0,107540.0,0.5765]
[1748210289843,0.29211709,107550.0,107540.0,0.4279]
[1748210290050,0.29211709,107550.0,107540.0,0.2046]
[1748210291721,0.29211709,107550.0,107540.0,0.98206375]
[1748210293006,0.41356265,107550.0,107540.0,0.056]
[1748210293231,0.46221683,107550.0,107540.0,0.056]
[1748210293489,0.41356265,107550.0,107540.0,0.056]
[1748210293726,0.42244478,107550.0,107540.0,0.056]
[1748210293975,0.38967969,107550.0,107540.0,0.054]
[1748210294311,0.39367969,107550.0,107540.0,0.054]
[1748210294534,0.39367969,107550.0,107540.0,0.052]
[1748210294740,0.39867969,107550.0,107540.0,0.052]
[1748210295132,0.70867969,107550.0,107540.0,0.052]
[1748210295758,1.53887694,107550.0,107540.0,0.052]
[1748210296158,2.23587694,107550.0,107540.0,0.052]
[1748210296401,2.25184315,107550.0,107540.0,0.052]
[1748210296574,2.22587694,107550.0,107540.0,0.052]
[1748210297512,2.28694409,107550.0,107540.0,0.052]
[1748210298066,2.28694409,107550.0,107540.0,0.0302235]
[1748210298882,2.27587694,107550.0,107540.0,0.0302235]
[1748210299091,2.37364694,107550.0,107540.0,0.0302235]
[1748210299891,2.32091344,107550.0,107540.0,0.0302235]
[1748210300203,1.32391344,107550.0,107540.0,0.0302235]
[1748210302308,1.62391344,107550.0,107540.0,0.0302235]
[1748210303147,1.63498059,107550.0,107540.0,0.0302235]
[1748210306192,1.63503081,107550.0,107540.0,0.0302235]
[1748210306593,1.72455232,107550.0,107540.0,0.0302235]
[1748210307231,2.79201607,107550.0,107540.0,0.0302235]
[1748210307882,2.84776607,107550.0,107540.0,0.02006351]
[1748210308300,0.26913429,107530.0,107520.0,0.002]
[1748210308532,1.5694536,107530.0,107520.0,0.002]
[1748210308747,1.62181512,107530.0,107520.0,0.002]
[1748210308976,1.63049107,107530.0,107520.0,0.002]
[1748210309418,0.19536682,107490.0,107480.0,1.18447139]
[1748210310096,0.19536682,107490.0,107480.0,1.03583139]
[1748210310340,0.19536682,107490.0,107480.0,1.18447139]
[1748210310519,0.20458901,107490.0,107480.0,1.18447139]
[1748210310727,0.19536682,107490.0,107480.0,1.18462217]
[1748210311163,0.19536682,107490.0,107480.0,1.03898217]
[1748210311510,0.19536682,107490.0,107480.0,1.04198217]
[1748210312539,0.19536682,107490.0,107480.0,1.07358217]
[1748210314196,0.19536682,107490.0,107480.0,1.22226217]
[1748210314424,0.19536682,107490.0,107480.0,0.37775078]
[1748210314654,0.20990767,107490.0,107480.0,0.03775078]
[1748210314830,0.20990767,107490.0,107480.0,0.00615078]
[1748210314831,0.33025323,107490.0,107480.0,0.00615078]
[1748210315338,0.47893323,107490.0,107480.0,0.00315078]
[1748210315604,0.47893323,107490.0,107480.0,0.00015078]
[1748210315788,0.47993323,107490.0,107480.0,0.00015078]
[1748210316014,0.47893323,107490.0,107480.0,0.00015078]
[1748210316449,0.48293323,107490.0,107480.0,0.00015078]
[1748210316637,0.48593323,107490.0,107480.0,0.00015078]
[1748210318663,0.78593323,107490.0,107480.0,0.00015078]
[1748210321010,0.79593323,107490.0,107480.0,0.00015078]
[1748210321420,0.80460918,107490.0,107480.0,0.00015078]
[1748210323498,0.21924851,107470.0,107460.0,0.0339]
[1748210323702,0.21924851,107470.0,107460.0,0.03440299]
[1748210324903,0.22024851,107470.0,107460.0,0.03440299]
[1748210327736,0.30979407,107470.0,107460.0,0.03440299]
[1748210328744,0.30979407,107470.0,107460.0,0.37440299]
[1748210329467,0.30979407,107470.0,107460.0,0.35890299]
[1748210330039,0.30979407,107470.0,107460.0,0.01890299]
[1748210330239,0.30979407,107470.0,107460.0,0.00250299]
[1748210331929,0.46487407,107470.0,107460.0,0.00250299]
[1748210333350,0.48087407,107470.0,107460.0,0.00250299]
[1748210333579,0.49597407,107470.0,107460.0,0.00250299]
[1748210333816,0.64469407,107470.0,107460.0,0.00250299]
[1748210334769,0.65337002,107470.0,107460.0,0.00250299]
[1748210334921,0.65437002,107470.0,107460.0,0.00250299]
[1748210335125,0.65637002,107470.0,107460.0,0.00250299]
[1748210338944,1.83335528,107470.0,107460.0,0.00250299]
[1748210339156,1.86810436,107470.0,107460.0,0.00250299]
[1748210340076,1.78286768,107470.0,107460.0,0.00250299]
[1748210340566,1.79393483,107470.0,107460.0,0.00250299]
[1748210340767,1.79193483,107470.0,107460.0,0.00250299]
[1748210340987,1.79393483,107470.0,107460.0,0.00250299]
[1748210341447,1.94940596,107470.0,107460.0,0.00250299]
[1748210341653,0.51928663,107450.0,107440.0,0.002]
[1748210341863,0.64113219,107450.0,107440.0,0.00215081]
[1748210342085,0.78989219,107450.0,107440.0,0.00215081]
[1748210342327,0.79856814,107450.0,107440.0,0.00215081]
[1748210342947,0.79956814,107450.0,107440.0,0.00215081]
[1748210343160,0.80845027,107450.0,107440.0,0.00215081]
[1748210343883,0.80945027,107450.0,107440.0,0.00215081]
[1748210344110,1.37707687,107450.0,107440.0,0.00215081]
[1748210344312,1.49242621,107450.0,107440.0,0.00215081]
[1748210344533,1.49137109,107450.0,107440.0,0.00215081]
[1748210344738,1.4820329,107450.0,107440.0,0.00215081]
[1748210344942,1.4810329,107450.0,107440.0,0.00215081]
[1748210345113,1.4800329,107450.0,107440.0,0.00215081]
[1748210345280,1.4830329,107450.0,107440.0,0.00215081]
[1748210345506,1.4860329,107450.0,107440.0,0.00215081]
[1748210346102,0.80745244,107450.0,107440.0,0.00215081]
[1748210346351,0.71793093,107450.0,107440.0,0.00215081]
[1748210348136,0.70312123,107450.0,107440.0,0.00215081]
[1748210348368,0.76682236,107450.0,107440.0,0.00215081]
[1748210348566,0.21932474,107430.0,107420.0,0.002]
[1748210348771,0.4639103,107430.0,107420.0,0.03315029]
[1748210349639,0.4639103,107430.0,107420.0,0.00205029]
[1748210350078,0.4639103,107430.0,107420.0,0.00305029]
[1748210350523,0.6126703,107430.0,107420.0,0.00305029]
[1748210353264,0.6436703,107430.0,107420.0,0.00305029]
[1748210353503,0.6126703,107430.0,107420.0,0.00305029]
[1748210356433,0.67628383,107430.0,107420.0,0.00305029]
[1748210357289,0.21003499,107420.0,107410.0,0.3523502]
[1748210357503,0.29958055,107420.0,107410.0,0.35240049]
[1748210359166,0.29958055,107420.0,107410.0,0.35440049]
[1748210359369,0.29958055,107420.0,107410.0,0.35640049]
[1748210366734,0.30870577,107420.0,107410.0,0.35640049]
[1748210367691,0.46374577,107420.0,107410.0,0.35640049]
[1748210369996,0.46374577,107420.0,107410.0,0.35189073]
[1748210373648,0.46374577,107420.0,107410.0,0.00405029]
[1748210373892,0.87888418,107420.0,107410.0,0.00405029]
[1748210374103,1.44100817,107420.0,107410.0,0.00405029]
[1748210374319,1.72100817,107420.0,107410.0,0.00405029]
[1748210374535,0.57005319,107410.0,107400.0,0.002]
[1748210374781,1.93628807,107410.0,107400.0,0.00214061]
[1748210375001,2.32580958,107410.0,107400.0,0.00214061]
[1748210375460,2.08155958,107410.0,107400.0,0.00214061]
[1748210375658,2.11413892,107410.0,107400.0,0.00214061]
[1748210376096,2.11613892,107410.0,107400.0,0.00214061]
[1748210376332,2.80836599,107410.0,107400.0,0.00214061]
[1748210376548,1.26152809,107390.0,107380.0,0.012]
[1748210376799,1.77024741,107390.0,107380.0,0.012]
[1748210377007,1.79782675,107390.0,107380.0,0.012]
[1748210377431,1.80670888,107390.0,107380.0,0.012]
[1748210378464,1.82080913,107390.0,107380.0,0.012]
[1748210378669,1.84733335,107390.0,107380.0,0.012]
[1748210378881,1.85133335,107390.0,107380.0,0.012]
[1748210379078,1.82480913,107390.0,107380.0,0.012]
[1748210379306,0.76172121,107390.0,107380.0,0.012]
[1748210379516,0.64728036,107390.0,107380.0,0.012]
[1748210379734,0.30240573,107390.0,107380.0,0.013]
[1748210379946,0.30240573,107390.0,107380.0,0.0449]
[1748210380175,0.45740573,107390.0,107380.0,0.0449]
[1748210380749,0.29630523,107390.0,107380.0,0.73712707]
[1748210381364,0.29630523,107390.0,107380.0,0.71828349]
[1748210382042,0.29630523,107390.0,107380.0,0.02605642]
[1748210382239,0.29230523,107390.0,107380.0,0.02605642]
[1748210382447,0.28830523,107390.0,107380.0,0.36605642]
[1748210382657,0.29030523,107390.0,107380.0,0.36605642]
[1748210382863,0.29230523,107390.0,107380.0,0.36605642]
[1748210383219,0.20886017,107390.0,107380.0,0.36605642]
[1748210383651,0.20886017,107390.0,107380.0,0.33802057]
[1748210386649,0.20886017,107390.0,107380.0,0.36822057]
[1748210386885,0.20886017,107390.0,107380.0,0.34641591]
[1748210387290,0.20886017,107390.0,107380.0,0.49525591]
[1748210387440,0.20886017,107390.0,107380.0,1.18748298]
[1748210388227,0.20886017,107390.0,107380.0,0.34641591]
[1748210388432,0.20886017,107390.0,107380.0,1.18748298]
[1748210391302,0.20886017,107390.0,107380.0,1.15728298]
[1748210391508,0.20886017,107390.0,107380.0,0.31621591]
[1748210391707,0.20886017,107390.0,107360.0,0.23121723]
[1748210391708,0.19558518,107370.0,107360.0,0.3722]
[1748210391891,0.19558518,107370.0,107360.0,0.52109031]
[1748210392094,0.19558518,107370.0,107360.0,1.21331738]
[1748210392680,0.19558518,107370.0,107360.0,1.06447738]
[1748210392993,0.19558518,107370.0,107360.0,1.21431738]
[1748210393398,0.19558518,107370.0,107360.0,1.06547738]
[1748210393628,0.19558518,107370.0,107360.0,1.21431738]
[1748210394288,0.19558518,107370.0,107360.0,1.21531738]
[1748210397228,0.19558518,107370.0,107360.0,1.18511738]
[1748210398235,0.19558518,107370.0,107360.0,1.20091738]
[1748210399956,0.19558518,107370.0,107360.0,0.50869031]
[1748210400389,0.00931306,107370.0,107360.0,0.32039935]
[1748210400566,0.18625442,107380.0,107370.0,0.3558]
[1748210400765,0.18625442,107380.0,107370.0,1.06462202]
[1748210400994,0.18625442,107380.0,107370.0,1.26020729]
[1748210401156,0.18625442,107380.0,107370.0,1.26952087]
[1748210401360,0.20487959,107380.0,107370.0,1.26020737]
[1748210401558,0.0186243,107380.0,107370.0,1.37769265]
[1748210401759,0.20486033,107390.0,107380.0,0.22007924]
[1748210401980,0.21417218,107390.0,107380.0,1.40822898]
[1748210402269,0.01862266,107390.0,107380.0,1.41754126]
[1748210402478,0.03243597,107400.0,107390.0,0.23666033]
[1748210402707,0.03243597,107400.0,107390.0,1.72096117]
[1748210402910,0.04174635,107400.0,107390.0,1.02823915]
[1748210403122,0.03243597,107400.0,107390.0,1.02823915]
[1748210403854,0.03743597,107400.0,107390.0,1.72096117]
[1748210404060,0.03443597,107400.0,107390.0,1.72096117]
[1748210404259,0.03243597,107400.0,107390.0,1.72096117]
[1748210404475,0.03243597,107400.0,107390.0,1.73042541]
[1748210404676,0.03243597,107400.0,107390.0,1.73142541]
[1748210405529,0.03243597,107400.0,107390.0,1.73242541]
[1748210405964,0.03243597,107400.0,107390.0,0.34698137]
[1748210406164,0.21415198,107400.0,107390.0,1.23695909]
[1748210406397,0.2234627,107400.0,107390.0,1.38842253]
[1748210406625,0.2234627,107400.0,107390.0,1.23958253]
[1748210406862,0.21415224,107400.0,107390.0,1.38842253]
[1748210407262,0.21415224,107400.0,107390.0,1.23958253]
[1748210407468,0.19553071,107400.0,107390.0,1.37911077]
[1748210407682,0.19553071,107400.0,107390.0,1.03472202]
[1748210407919,0.21007156,107400.0,107390.0,0.49084]
[1748210409446,0.21007156,107400.0,107390.0,0.342]
[1748210409673,0.21007156,107400.0,107390.0,0.49084]
[1748210410529,0.21007156,107400.0,107390.0,0.342]
[1748210410666,0.22617156,107400.0,107390.0,0.49084]
[1748210411086,0.22617156,107400.0,107390.0,0.342]
[1748210411087,0.24137156,107400.0,107390.0,0.342]
[1748210411303,0.24137156,107400.0,107390.0,0.49084]
[1748210411692,0.33091712,107400.0,107390.0,0.002]
[1748210413507,0.4151734,107400.0,107390.0,0.002]
[1748210413748,0.4651734,107400.0,107390.0,0.002]
[1748210413909,1.70438167,107400.0,107390.0,0.002]
[1748210414111,0.55183918,107370.0,107360.0,0.00205031]
[1748210414343,0.94514474,107370.0,107360.0,0.00205031]
[1748210415929,1.00869449,107370.0,107360.0,0.00205031]
[1748210416147,1.00969449,107370.0,107360.0,0.00205031]
[1748210416339,1.06211444,107370.0,107360.0,0.00205031]
[1748210416550,1.04348788,107370.0,107340.0,0.002]
[1748210416753,0.25087735,107350.0,107340.0,0.00250348]
[1748210416959,0.34042291,107350.0,107340.0,0.00250348]
[1748210417346,0.64042291,107350.0,107340.0,0.00250348]
[1748210417750,0.88293566,107350.0,107340.0,0.00250348]
[1748210418034,0.79926291,107350.0,107340.0,0.00250348]
[1748210418247,0.49926291,107350.0,107340.0,0.00250348]
[1748210418370,0.49926291,107350.0,107340.0,0.00450348]
[1748210418774,0.50026291,107350.0,107340.0,0.00550348]
[1748210418974,0.58878442,107350.0,107340.0,0.00250348]
[1748210419228,0.59278442,107350.0,107340.0,0.00250348]
[1748210419425,0.95822291,107350.0,107340.0,0.00250348]
[1748210419634,0.20497469,107330.0,107320.0,0.0124033]
[1748210419781,0.32612025,107330.0,107320.0,0.01245363]
[1748210419981,0.6545778,107330.0,107320.0,0.01245363]
[1748210420593,0.8034178,107330.0,107320.0,0.01245363]
[1748210421301,0.99293931,107330.0,107320.0,0.01245363]
[1748210421513,0.99693931,107330.0,107320.0,0.01245363]
[1748210421639,0.98693931,107330.0,107320.0,0.01245363]
[1748210421848,1.01936589,107330.0,107320.0,0.01245363]
[1748210422054,1.02336589,107330.0,107320.0,0.01345363]
[1748210422431,1.04989011,107330.0,107320.0,0.01345363]
[1748210422642,0.99989011,107330.0,107320.0,0.01345363]
[1748210423074,0.60015375,107310.0,107300.0,0.002]
[1748210423310,1.70814082,107310.0,107300.0,0.00209386]
[1748210423485,1.67272287,107310.0,107300.0,0.00209386]
[1748210423703,1.06469931,107310.0,107300.0,0.00209386]
[1748210423923,0.62861931,107310.0,107300.0,0.00209386]
[1748210424161,0.62469931,107310.0,107300.0,0.00209386]
[1748210424405,0.91301931,107310.0,107300.0,0.00209386]
[1748210424617,0.91501931,107310.0,107300.0,0.00209386]
[1748210424839,0.76609931,107310.0,107300.0,0.00209386]
[1748210425513,0.76909931,107310.0,107300.0,0.00309386]
[1748210425731,0.11318254,107310.0,107300.0,0.18948714]
[1748210425944,0.2100129,107310.0,107300.0,0.00309386]
[1748210426156,0.22455375,107310.0,107300.0,0.00309386]
[1748210426356,0.2100129,107310.0,107300.0,0.00309386]
[1748210426560,0.25566753,107310.0,107300.0,0.01899386]
[1748210426760,0.19571294,107300.0,107290.0,1.15243076]
[1748210426898,0.21435148,107300.0,107290.0,1.16887157]
[1748210427126,0.20503234,107300.0,107290.0,1.16887157]
[1748210427323,0.20503234,107300.0,107290.0,1.01995157]
[1748210427680,0.22367097,107300.0,107290.0,1.16887157]
[1748210427849,0.22367097,107300.0,107290.0,1.17819184]
[1748210428058,0.2194897,107310.0,107300.0,0.54503216]
[1748210428059,0.22981036,107310.0,107300.0,0.54503216]
[1748210428215,0.23912906,107310.0,107300.0,0.53571285]
[1748210428441,0.23812906,107310.0,107300.0,0.52639328]
[1748210428645,0.23812906,107310.0,107300.0,0.54503208]
[1748210428823,0.22681044,107310.0,107300.0,0.52639328]
[1748210429228,0.19569666,107310.0,107300.0,0.52639328]
[1748210429722,0.18737796,107310.0,107300.0,0.53571294]
[1748210430006,0.18737796,107310.0,107300.0,0.54503243]
[1748210430212,0.18737796,107310.0,107300.0,0.53571294]
[1748210430416,0.22464978,107310.0,107300.0,0.59617087]
[1748210430621,0.03827325,107310.0,107300.0,0.59617087]
[1748210430869,0.04759187,107310.0,107300.0,0.59617087]
[1748210431073,0.02895472,107310.0,107300.0,0.59617087]
[1748210431285,0.02995472,107310.0,107300.0,0.59617087]
[1748210431689,0.22155383,107310.0,107300.0,0.48892]
[1748210432109,0.22155383,107310.0,107300.0,0.34]
[1748210432288,0.22155383,107310.0,107300.0,0.48892]
[1748210433077,0.22155383,107310.0,107300.0,0.34]
[1748210433474,0.22155383,107310.0,107300.0,0.48892]
[1748210433657,0.22155383,107310.0,107300.0,0.34]
[1748210437325,0.19571277,107300.0,107290.0,0.14906081]
[1748210437667,0.21025362,107300.0,107290.0,0.00014081]
[1748210437856,0.21025362,107300.0,107290.0,0.14906081]
[1748210438446,0.21025362,107300.0,107290.0,0.15006081]
[1748210438883,0.21125362,107300.0,107290.0,0.15010081]
[1748210439231,0.21125362,107300.0,107290.0,0.00114081]
[1748210439471,0.21125362,107300.0,107290.0,0.15010081]
[1748210441937,0.21125362,107300.0,107290.0,0.00114081]
[1748210442208,0.21125362,107300.0,107290.0,0.15010081]
[1748210442814,0.21125362,107300.0,107290.0,0.49010081]
[1748210443845,0.21125362,107300.0,107290.0,0.46827951]
[1748210445411,0.21125362,107300.0,107290.0,0.34]
[1748210445661,0.24197186,107290.0,107280.0,0.012]
[1748210445934,0.33151742,107290.0,107280.0,0.01214071]
[1748210446875,0.3413256,107290.0,107280.0,0.01414071]
[1748210447054,0.3413256,107290.0,107280.0,0.02283745]
[1748210448083,0.3413256,107290.0,107280.0,0.02483745]
[1748210449347,0.3413256,107290.0,107280.0,0.01614071]
[1748210451182,0.36717189,107290.0,107280.0,0.01614071]
[1748210453159,0.33547189,107290.0,107280.0,0.01614071]
[1748210454032,0.25934586,107290.0,107280.0,1.37845627]
[1748210454241,0.22417965,107290.0,107280.0,1.18715564]
[1748210454895,0.21537147,107290.0,107280.0,1.18715564]
[1748210455656,0.2786697,107290.0,107280.0,1.18715564]
[1748210455878,0.2786697,107290.0,107280.0,1.19647695]
[1748210456100,0.2786697,107290.0,107280.0,1.15909293]
[1748210456322,0.26002942,107290.0,107280.0,1.12789293]
[1748210457655,0.27457027,107290.0,107280.0,1.12789293]
[1748210457867,0.21127204,107290.0,107280.0,1.12789293]
[1748210460091,0.24359253,107290.0,107280.0,1.12789293]
[1748210462139,0.24359253,107290.0,107280.0,0.34]
[1748210462393,0.24359253,107290.0,107280.0,0.48896]
[1748210463222,0.24243267,107290.0,107280.0,0.48896]
[1748210464202,0.24243267,107290.0,107280.0,0.46713585]
[1748210471189,0.27503171,107290.0,107280.0,0.46713585]
[1748210471921,0.27503171,107290.0,107280.0,1.16122344]
[1748210474906,0.21127204,107290.0,107280.0,1.16122344]
[1748210475698,0.19673119,107290.0,107280.0,1.35697269]
[1748210475900,0.19673093,107290.0,107280.0,2.10100247]
[1748210476111,0.21537138,107290.0,107280.0,2.09168142]
[1748210476370,0.20605137,107290.0,107280.0,1.39759383]
[1748210476600,0.20605137,107290.0,107280.0,1.40691488]
[1748210476829,0.20605137,107290.0,107280.0,1.39759383]
[1748210477519,0.20605137,107290.0,107280.0,1.40691488]
[1748210477911,0.20605137,107290.0,107280.0,1.39759383]
[1748210479302,0.1967311,107290.0,107280.0,1.38827269]
[1748210479530,0.18741066,107290.0,107280.0,1.37895147]
[1748210479667,0.18741066,107290.0,107280.0,1.16122344]
[1748210494781,0.01032009,107290.0,107280.0,2.0765816]
[1748210495001,0.02896027,107290.0,107280.0,2.11092344]
[1748210495218,0.02896027,107290.0,107280.0,2.10160265]
[1748210495434,0.001,107290.0,107280.0,2.20978988]
[1748210496716,0.03259904,107300.0,107290.0,0.5858712]
[1748210496940,0.01080818,107310.0,107300.0,0.24585121]
[1748210497156,0.01080818,107310.0,107300.0,1.17844436]
[1748210497366,0.002,107310.0,107300.0,1.17844436]
[1748210497575,0.002,107310.0,107300.0,1.20638836]
[1748210498395,0.03467455,107310.0,107300.0,1.20638836]
[1748210499464,0.03467455,107310.0,107300.0,1.20838836]
[1748210502599,0.16001127,107330.0,107320.0,0.23061128]
[1748210502831,0.16001127,107330.0,107320.0,1.87319202]
[1748210503360,0.08575499,107330.0,107320.0,2.37155202]
[1748210503570,0.0523809,107340.0,107330.0,0.57059132]
[1748210503783,0.14583452,107360.0,107350.0,0.23055138]
[1748210503784,0.0517503,107360.0,107350.0,0.23055138]
[1748210504002,0.04258716,107360.0,107350.0,0.48491694]
[1748210504226,0.06121476,107360.0,107350.0,0.48491694]
[1748210504628,0.04258716,107360.0,107350.0,1.87309212]
[1748210504799,0.05190083,107360.0,107350.0,1.17900453]
[1748210505354,0.04258716,107360.0,107350.0,1.67736453]
[1748210505528,0.05390083,107360.0,107350.0,1.67736453]
[1748210505741,0.04458716,107360.0,107350.0,1.67736453]
[1748210506271,0.04658716,107360.0,107350.0,1.67836453]
[1748210507674,0.04658716,107360.0,107350.0,2.37245212]
[1748210507917,0.04658716,107360.0,107350.0,1.67836453]
[1748210508630,0.04258716,107360.0,107350.0,1.67736453]
[1748210508805,0.04358716,107360.0,107350.0,1.67736453]
[1748210509441,0.00115062,107360.0,107350.0,1.67736453]
[1748210509846,0.00115062,107360.0,107350.0,2.37145212]
[1748210511410,0.00115062,107360.0,107350.0,2.37245212]
[1748210511552,0.00015062,107360.0,107350.0,2.37245212]
[1748210511779,0.00015062,107360.0,107350.0,2.37345212]
[1748210513244,0.00015062,107360.0,107350.0,2.40137912]
[1748210513741,0.002,107370.0,107360.0,1.9743066]